Cogmind - Beta 15 @@@ ROGUE MODE // 2025.08.08 @ 02:28:39 Player: Mogwok Wargfriend Result: Destroyed by G-47 Trooper with Particle Gun Performance ------------- Evolutions (0) 0 Regions Visited (2) 400 Robots Destroyed (26) 130 Value Destroyed (531) 531 Prototype IDs (0) 0 Alien Tech Used (0) 0 Bonus (0) 0 TOTAL SCORE: 1061 Bonus ------- None Cogmind --------- Core Integrity 0/250 Matter 202/300 Energy 248/250 System Corruption 2% Temperature Cool (10) Movement Rolling (95) Ox1 Location -10/Mines Parts ------- > --- POWER (1) -------- Ion Engine > --- PROPULSION (2) --- Wheel Wheel > --- UTILITY (2) ------ Large Storage Unit Targeting Computer > --- WEAPON (2) ------- Light Cannon > --- INVENTORY (15) --- Light Ion Engine Light Nuclear Core Improved Heat Sink Large Storage Unit Medium Battery (150) High-capacity Matter Pod (200) Sensor Array Hacking Suite Hacking Suite Grenade Launcher Mining Laser Peak State ------------ > --- POWER ------------ Light Ion Engine > --- PROPULSION ------- Wheel Wheel > --- UTILITY ---------- Large Storage Unit Weapon Shielding > --- WEAPON ----------- Small Laser Assault Rifle > --- INVENTORY -------- Light Ion Engine Wheel Wheel Improved Heat Sink Large Storage Unit Medium Battery High-capacity Matter Pod Sensor Array Targeting Computer Hacking Suite Hacking Suite EM Pulse Gun Light Assault Rifle Grenade Launcher Mining Laser [Rating: 9] Favorites ----------- Power Light Ion Engine Engine Light Ion Engine Propulsion Wheel Wheel Wheel Utility Large Storage Unit Device Seismic Detector Storage Large Storage Unit Processor Targeting Computer Protection Weapon Shielding Weapon Assault Rifle Energy Gun Small Laser Ballistic Gun Assault Rifle Ballistic Cannon Light Cannon Build | -11 -10 -10 ------- Run | Yrd Mat Min Slots Evolved . | . . . Power . | . . . Propulsion . | . . . Utility . | . . . Weapon . | . . . Parts Attached 21 | 9 6 6 Power 4 | 1 2 1 Engine 4 | 1 2 1 Core . | . . . Reactor . | . . . Propulsion 7 | 4 1 2 Treads . | . . . Leg . | . . . Wheel 7 | 4 1 2 Hover . | . . . Flight . | . . . Utility 5 | 2 2 1 Device 1 | 1 . . Storage 2 | 1 1 . Processor 1 | . . 1 Hackware . | . . . Protection 1 | . 1 . Artifact . | . . . Weapon 5 | 2 1 2 Energy Gun 1 | 1 . . Energy Cannon . | . . . Ballistic Gun 3 | 1 1 1 Ballistic Cannon 1 | . . 1 Launcher . | . . . Special Weapon . | . . . Impact Weapon . | . . . Slashing Weapon . | . . . Piercing Weapon . | . . . Special Melee Weapon . | . . . Unidentified Prototypes . | . . . Parts Lost 7 | . 1 6 Power 1 | . 1 . Propulsion 2 | . . 2 Utility 1 | . . 1 Weapon 3 | . . 3 Highest Loss Streak 4 | . 1 4 To Critical Strikes . | . . . Average Backups 13 | 4 14 13 Power 1 | . 1 1 Propulsion 3 | 2 3 1 Utility 5 | . 5 7 Weapon 3 | 1 3 3 Tool/Special . | . . . Unused Backups 20 | 2 7 11 Power 2 | . . 2 Propulsion 5 | 1 4 . Utility 8 | . 1 7 Weapon 5 | 1 2 2 Tool/Special . | . . . Average Slot Usage (%) 97 | . 97 95 Engine 12 | . 11 14 Wheel 27 | . 28 26 Device 3 | . 3 . Storage 14 | . 14 14 Processor 1 | . . 9 Protection 9 | . 10 3 Energy Gun 8 | . 10 . Ballistic Gun 18 | . 17 22 Peak Build Rating 9 | 7 9 9 Average Rating 7 | 5 8 8 On Entrance 5 | . 7 9 Naked Turns . | . . . Heaviest Build 30 | 12 30 30 Greatest Support 32 | 32 20 20 Greatest Overweight (x) 2 | . 2 1 Average Overweight (x) . | . . 1 Largest Inventory Capacity 15 | 8 15 15 Average Capacity 14 | 7 14 15 Most Carried 15 | 8 15 15 Average Carried 13 | 4 14 13 Final Capacity 15 | 8 15 15 Final Carried 15 | 8 15 11 Class Distribution -------------------- 100% | Mutant Dominant Class ---------------- Mutant | -10/Materials Mutant | -10/Mines Resources | -11 -10 -10 ----------- Run | Yrd Mat Min Matter Collected 827 | 302 445 80 Remotely . | . . . Salvage Created 804 | 105 503 196 Parts 65 | 12 42 11 Haulers Intercepted 1 | . 1 . Recyclers Shooed . | . . . Parts Field Recycled . | . . . Retrieved Matter . | . . . Parts Self-Destructed . | . . . Prevented . | . . . Kills | -11 -10 -10 ------- Run | Yrd Mat Min Combat Hostiles Destroyed 16 | . 12 4 Guns 15 | . 12 3 Cannons 1 | . . 1 Classes Destroyed 9 | 2 7 . Worker 1 | . 1 . Builder 1 | . 1 . Tunneler 2 | 2 . . Hauler 1 | . 1 . Recycler 1 | 1 . . Operator 2 | . 2 . Watcher 2 | . 2 . Swarmer 6 | . 6 . Grunt 10 | . 6 4 Best Kill Streak 5 | 2 5 2 Combat Bots Only 5 | . 5 2 Max Kills in Single Turn 2 | 1 2 1 Gunslinging 1 | . 1 . Exploded . | . . . Melee . | . . . Uniques/NPCs Destroyed . | . . . Combat | -11 -10 -10 -------- Run | Yrd Mat Min Hostile Shots Fired 101 | . 41 60 Missed 16 | . 11 5 Hits 85 | . 30 55 Projectile 85 | . 30 55 Critical Strikes 1 | . 1 . Damage Taken 1094 | . 322 772 Core 256 | . 65 191 Absorbed by Shields . | . . . Redirected to Shielding 52 | . 17 35 Core Remaining (%) 100 | 100 . . Volleys Fired 82 | 4 52 26 Largest 2 | 2 2 2 Hottest 60 | 60 60 50 Shots Fired 153 | 8 101 44 Gun 142 | 8 101 33 Cannon 11 | . . 11 Launcher . | . . . Special . | . . . Kinetic 109 | 4 61 44 Thermal 44 | 4 40 . Explosive . | . . . Electromagnetic . | . . . Robot Hit Streak 13 | 2 8 13 Robot Miss Streak 5 | 1 5 1 Penetration Max . | . . . Secondary Targets 4 | . 2 2 Max Gunslinging Chain 1 | . 1 1 Shots Hit Robots 97 | 4 55 38 Core Hits 44 | 4 29 11 Critical Kills . | . . . Critical Parts Destroyed . | . . . Critical Strikes 1 | . . 1 Blast 1 | . . 1 Melee Attacks . | . . . Impact . | . . . Slashing . | . . . Piercing . | . . . Sneak Attacks . | . . . Combat Hostiles . | . . . Follow-up Attacks . | . . . Damage Inflicted 1222 | 45 636 541 Guns 1039 | 45 629 365 Cannons 176 | . . 176 Explosions . | . . . Melee . | . . . Ramming 7 | . 7 . Kinetic 911 | 22 348 541 Thermal 304 | 23 281 . Explosive . | . . . Electromagnetic . | . . . Impact . | . . . Slashing . | . . . Piercing . | . . . Highest Corruption 2 | . 2 2 Average Corruption 2 | . 2 2 Corruption Purged . | . . . Corruption Blocked . | . . . Effects 3 | . 2 1 Message Errors 1 | . 1 . Matter Fused 1 | . 1 . Data Loss (minor) 1 | . . 1 Overload Shots . | . . . Overflow Damage . | . . . Projectiles . | . . . Explosions . | . . . Melee . | . . . Knockbacks 1 | . . 1 Impact . | . . . Kinetic 1 | . . 1 Secondary . | . . . Self-Inflicted Damage 3 | . 3 . Shots . | . . . Rammed 1 | . 1 . Targets Rammed 1 | . 1 . Kicked . | . . . Crushed . | . . . Highest Temperature 36 | . 36 30 Average Temperature 8 | . 9 8 Received Heat Transfer 561 | . 129 432 Siege Activations . | . . . Martial Activations . | . . . Shielding Activations . | . . . Robots Disrupted . | . . . Combat Hostiles . | . . . Robots Corrupted . | . . . Combat Hostiles . | . . . Parts Fried . | . . . Impact Corruptions . | . . . Robots Melted . | . . . Combat Hostiles . | . . . Parts Melted . | . . . Heat Transferred 675 | 50 625 . Parts Sabotaged . | . . . Parts Stolen . | . . . Parts Stripped . | . . . Power Chain Reactions . | . . . Alert | -11 -10 -10 ------- Run | Yrd Mat Min Maximum Alert Level . | . . . Low Security (%) 100 | 100 100 100 Level 1 . | . . . Level 2 . | . . . Level 3 . | . . . Level 4 . | . . . Level 5 . | . . . High Security . | . . . Max Security . | . . . Peak Influence 101 | 10 101 40 Initial 6 | . . 6 Average 40 | 1 48 11 Influence Increases 502 | 15 387 100 Destroy 0b10 Robot/C 320 | . 240 80 Destroy 0b10 Robot/NC 50 | 15 35 . Destroy Leader 86 | . 66 20 Successful Hack 29 | . 29 . Destroy Structure 2 | . 2 . Lose Combat Pursuer 15 | . 15 . Influence Decreases 502 | 15 369 118 Entered New Map 12 | . . 12 Time Decay 424 | 15 359 50 Lost Part 66 | . 10 56 Squads Dispatched 5 | . 5 . Investigation 2 | . 2 . Extermination . | . . . Reinforcement 3 | . 3 . Assault . | . . . Garrison . | . . . Intercept . | . . . Searches Triggered . | . . . Construction Impeded . | . . . Haulers Reinforced . | . . . Active Scanning Responses . | . . . Cargo Convoy Interrupts . | . . . Stealth | -11 -10 -10 --------- Run | Yrd Mat Min Distress Signals 1 | . 1 . Communications Jammed . | . . . Distress Signals . | . . . Times Spotted 26 | . 20 6 Peak Tracking Total 5 | . 5 4 Tactical Retreats 1 | . 1 . Traps | -11 -10 -10 ------- Run | Yrd Mat Min Traps Triggered 2 | . 2 . Indirectly . | . . . Trap Hack Attempts . | . . . Triggered . | . . . Disarmed . | . . . Reprogrammed . | . . . Reused . | . . . Traps Extracted . | . . . Installed . | . . . Triggered . | . . . Machines | -11 -10 -10 ---------- Run | Yrd Mat Min Machines Disabled . | . . . Max in Single Turn . | . . . Machines Repaired . | . . . Machines Dismantled . | . . . Machines Sabotaged . | . . . Overloaded Fab Kills . | . . . Hacking | -11 -10 -10 --------- Run | Yrd Mat Min Machines Accessed 7 | . 7 . Terminals 5 | . 5 . Fabricators . | . . . Repair Stations . | . . . Recycling Units 2 | . 2 . Scanalyzers . | . . . Garrison Access . | . . . Total Hacks 19 | . 19 . Successful 11 | . 11 . Failed 8 | . 8 . Catastrophic 1 | . 1 . Database Lockouts . | . . . Manual 14 | . 14 . Terminals 13 | . 13 . Fabricators . | . . . Repair Stations . | . . . Recycling Units 6 | . 6 . Scanalyzers . | . . . Garrison Access . | . . . Terminal Hacks 4 | . 4 . Record 1 | . 1 . Robot Analysis 2 | . 2 . Locate Traps 1 | . 1 . Fabricator Hacks . | . . . Repair Station Hacks . | . . . Recycling Unit Hacks 2 | . 2 . Report Inventory 1 | . 1 . Retrieve Components 1 | . 1 . Scanalyzer . | . . . Garrison Access Hacks . | . . . Unauthorized Hacks 5 | . 5 . Terminals 2 | . 2 . Botnet 1 | . 1 . Operators 1 | . 1 . Fabricators . | . . . Repair Stations . | . . . Recycling Units 3 | . 3 . Reject 2 | . 2 . Mask 1 | . 1 . Scanalyzers . | . . . Garrison Access . | . . . Data Cores Recovered . | . . . Used . | . . . Hacking Detections 6 | . 6 . Full Trace Events . | . . . Feedback Events . | . . . Feedback Blocked . | . . . Robot Schematics Acquired . | . . . Robots Built . | . . . Authchips . | . . . Time . | . . . Total Robot Build Rating . | . . . Part Schematics Acquired . | . . . Parts Built . | . . . Authchips . | . . . Time . | . . . Total Part Build Rating . | . . . Parts Repaired . | . . . Time . | . . . Parts Recycled . | . . . Recycled Matter . | . . . Retrieved Matter . | . . . Retrieved Components 5 | . 5 . Parts Scanalyzed . | . . . Part Schematics Acquired . | . . . Parts Damaged . | . . . Bothacking | -11 -10 -10 ------------ Run | Yrd Mat Min Used RIF Installer . | . . . Robots Hacked . | . . . Non-combat . | . . . Combat . | . . . Robot Hacks Applied . | . . . Relay Couplers Released . | . . . Fabnet Peak Effective % . | . . . Robots Rewired . | . . . Allies Hacked . | . . . Hacks Repelled . | . . . Allies | -11 -10 -10 -------- Run | Yrd Mat Min Total Allies . | . . . Largest Group . | . . . Highest-Rated Group . | . . . Highest-Rated Ally . | . . . Total Orders . | . . . Ally Attacks . | . . . Total Damage . | . . . Kills . | . . . Allies Corrupted . | . . . Allies Melted . | . . . Intel | -11 -10 -10 ------- Run | Yrd Mat Min Active Infowar (turns) 244 | 21 223 . Seismic 244 | 21 223 . Robot Analysis Total 2 | . 2 . Derelict Logs Recovered 1 | . . 1 Drone Launches . | . . . Drone Recoveries . | . . . Exploration | -11 -10 -10 ------------- Run | Yrd Mat Min Turns Passed 1173 | 117 935 121 Spaces Moved 907 | 81 781 45 Core 14 | 14 . . Treads . | . . . Legs . | . . . Wheels 893 | 67 781 45 Hover . | . . . Flight . | . . . Fastest Speed 50 | 50 80 95 Average Speed 93 | 87 94 95 Slowest Speed 110 | 100 110 95 Overloaded Moves . | . . . Propulsion Burnouts . | . . . Robots Hopped . | . . . Potential Cave-ins . | . . . Cave-ins Triggered . | . . . Exploration Rate (%) 37 | 4 99 8 Regions Visited 2 Branch Regions 1 Pre-discovered Areas 1 | . . 1 Known Exits Taken . | . . . Unknown Exits Taken 2 | 1 1 . Scrap Searched . | . . . Spaces Dug . | . . . Terrain Destroyed . | . . . Melee . | . . . Projectile . | . . . AOE . | . . . Terrain Rammed . | . . . Walls Destroyed . | . . . Machines Disabled . | . . . Actions | -11 -10 -10 --------- Run | Yrd Mat Min Total 1083 | 116 886 81 Wait 31 | 13 16 2 Move 905 | 80 780 45 Hop . | . . . Pick Up 26 | 8 17 1 Fast Attach 10 | 7 3 . Attach 5 | . . 5 Detach . | . . . Swap 6 | 2 3 1 Drop 17 | 2 14 1 Fire 82 | 4 52 26 Melee . | . . . Ram 1 | . 1 . Kick . | . . . Crush . | . . . Escape Stasis . | . . . Rewire . | . . . Trap . | . . . Miscellaneous . | . . . Route ------- -11/Scrapyard -10/Materials (discovered 5 exits: [*Mat x3] / [*Min] / [*Sub]) -10/Mines History --------- Turn | Location | Event 35 | -11/Scrapyard | Discovered new exit (range 16) 118 | -11/Scrapyard | Entered Materials 265 | -10/Materials | Discovered new exit (range 4) 309 | -10/Materials | Build established: Mutant 354 | -10/Materials | Discovered new exit (range 15) 465 | -10/Materials | Discovered new exit (range 10) 618 | -10/Materials | Derelicts attacked the area 912 | -10/Materials | Discovered new exit (range 3) 1026 | -10/Materials | Discovered new exit (range 11) 1053 | -10/Materials | Entered Mines 1109 | -10/Mines | Learned location of Zion (-6) 1146 | -10/Mines | Core integrity fell below 50% 1164 | -10/Mines | Core integrity fell below 20% 1174 | -10/Mines | Destroyed by G-47 Trooper with Particle Gun Last Messages --------------- 01084_ G-47 Trooper destroyed. 01088_ Acquired 50 matter. 01092_ Dropped Ion Engine. 01093_ Acquired 30 matter. 01095_ Acquired Lgt. Nuclear Core. 01109_ Acquired derelict log, extracted data. World map updated: -6/Zion. 01122_ System corrupted: Component data lost. 01123_ Assault Rifle destroyed. 01144_ G-34 Mercenary destroyed. 01144_ Switching to secondary target: G-47 Trooper. 01146_ Assault Rifle destroyed. 01149_ G-47 Trooper destroyed. 01152_ Wheel destroyed. 01158_ Assault Rifle destroyed. 01159_ G-34 Mercenary suffers critical hit (Blast). 01159_ Destroyed Heat Sink. 01174_ G-47 Trooper knocked back. Map ----- +----------------------------------------------------+ | | | | | | | | | | | | | | | | | | | | | | | | | | | | | | | | | | | ?????????????????????????????????????? | | ?????????????????????????????????????? | | ???????????????????????????####??????? | | ??????????????????????????## ####???? | | ??????##########??###??#### ##??? | | ??????#*[*gg% #### ##?# % #??? | | ??????# !%= ### =##??? | | ??????# $### ## =* ##???? | | ??????# #?##@ ## ### !##????? | | ?????# #??###############?####?????? | | ????# #???????????????????????????? | | ????# ???????????????????????????? | | ????# ???????????????????????????? | | ????## ???????????????????????????? | | ?????# ???????????????????????????? | | ?????# ???????????????????????????? | | ????? ???????????????????????????? | | ????? ???????????????????????????? | | ????? ???????????????????????????? | | ????? ???????????????????????????? | | ????# ???????????????????????????? | | ?????? ???????????????????????????? | | ?????????????????????????????????????? | | ?????????????????????????????????????? | | ?????????????????????????????????????? | | ?????????????????????????????????????? | | ?????????????????????????????????????? | | ?????????????????????????????????????? | | ?????????????????????????????????????? | | ?????????????????????????????????????? | | ?????????????????????????????????????? | | ?????????????????????????????????????? | | ?????????????????????????????????????? | +----------------------------------------------------+ Best States ------------- Heat Dissipation 25 Energy Generation 10 Energy Capacity 250 Matter Stores 300 Matter Capacity 300 Sight Range 16 Terrain Scan Density 10 Weapon Shielding 33 Evasion (%) 44 Targeting Accuracy 5 Item Schematics ----------------- None Robot Schematics ------------------ None Fabricated ------------ Nothing Repaired ---------- Nothing Alien Tech Used ----------------- None Achievements -------------- None Challenges ------------ None Game ------ Seed FlakExperimentalStorage Manual? 0 Play Time 00:15:00 Cumulative 288.5 hours Start 2025.08.08 @ 01:39:41 End 2025.08.08 @ 02:28:39 Sessions 2 Manual Loads 0 Difficulty Rogue Special Mode None Game No. 256 Rogue 256 Adventurer 0 Explorer 0 Win Type - Total 1 Types 1/0/0/0/0/0/0/0/0/0 Lore% 65 Gallery% 63 Achievement% 50 Wizard Run 0 Options --------- Layout 2 ASCII 1 Keyboard 1 Movement Numpad Keybinds 0 Fullscreen 2 Font 32/TamsynBold Map View 50x44 Zoom Use 0% Tactical HUD 1 Map Filters NONE Filters NONE Steam 1 RUN: cc2c33bc-1454-479c-a071-312d6ad5bcfa